Workbook

Sheet PSC254-BF-TBOQ1
A1: COUNTER | B1: ISC | C1: SECTION | D1: BILL | E1: PAGE NO | F1: ITEM NO | J1: QUANTITY | K1: RATE | L1: AMOUNT
A2: 1 | B2: 115 | C2: 1 | D2: 1 | E2: 1 | G2: SECTION NO. 1
A4: 2 | B4: 686 | C4: 1 | D4: 1 | E4: 1 | G4: BILL NO. 1
A6: 3 | B6: 33 | C6: 1 | D6: 1 | E6: 1 | F6: C1.2 | G6: GENERAL REQUIREMENTS AND PROVISIONS
F8: C1.2.5.1 | G8: Health and Safety Plan | I8: Lump Sum | J8: 1 | L8: =J8*K8 -> 0.00
F10: C1.2.5.2 | G10: Implementation of health and safety plan | I10: month | J10: 10 | L10: =J10*K10 -> 0.00
F12: PC1.2.5.3 | G12: Provision of full time Construction Safety Officer | I12: month | J12: 10 | L12: =J12*K12 -> 0.00
F14: PC1.2.5.4 | G14: Submission of the Health and Safety File | I14: Lump Sum | J14: 1 | L14: =J14*K14 -> 0.00
A16: 5 | B16: 914 | C16: 1 | D16: 1 | E16: 1 | F16: PC1.2.10 | G16: Standing time (Plant and Labour)
A18: 6 | B18: 915 | C18: 1 | D18: 1 | E18: 1 | G18: (a) Asphalt milling team | I18: hr | L18: Rate Only
A20: 7 | B20: 916 | C20: 1 | D20: 1 | E20: 1 | G20: (b) Asphalt paving team | I20: hr | L20: Rate Only
A22: 8 | B22: 917 | C22: 1 | D22: 1 | E22: 1 | G22: (c) Runway marking team | I22: hr | L22: Rate Only
A24: 9 | B24: 918 | C24: 1 | D24: 1 | E24: 1 | G24: (d) Earthwork team | I24: hr | L24: Rate Only
A26: 10 | B26: 919 | C26: 1 | D26: 1 | E26: 1 | G26: (e) Electrical team | I26: hr | L26: Rate Only
A28: 11 | B28: 920 | C28: 1 | D28: 1 | E28: 1 | F28: PC1.2.11 | G28: Airside induction courses and permits | I28: Lump Sum | J28: 1 | L28: =J28*K28 -> 0.00
G30: (a) Actual cost for attaining permits | I30: PS | J30: 1 | K30: 0.00 | L30: =J30*K30 -> 0.00
G32: (b) Contractors charge in respect of item C1.2.11 (a) above | I32: % | J32: 5.00% | K32: =L30 -> 0.00 | L32: =J32*K32 -> 0.00
A34: 13 | B34: 116 | C34: 1 | D34: 2 | E34: 2 | G34: SECTION NO. 1
A36: 14 | B36: 687 | C36: 1 | D36: 2 | E36: 2 | G36: BILL NO. 2
A38: 15 | B38: 102 | C38: 1 | D38: 2 | E38: 2 | F38: C1.3 | G38: CONTRACTOR'S SITE ESTABLISHMENT AND GENERAL OBLIGATIONS
F40: C1.3.1 | G40: The Contractor's general obligations
F42: C1.3.1.1 | G42: Fixed obligations | I42: Lump Sum | J42: 1 | L42: =J42*K42 -> 0.00
F44: C1.3.1.2 | G44: Value-related obligations | I44: Lump Sum | J44: 1 | L44: =J44*K44 -> 0.00
F46: C1.3.1.3 | G46: Time-related obligations | I46: month | J46: 10 | L46: =J46*K46 -> 0.00
G48: (a) Mobilisation period | I48: month
A50: 16 | B50: 109 | C50: 1 | D50: 2 | E50: 2 | F50: PC1.3.1.4 | G50: Suspension Cost
A52: 17 | B52: 110 | C52: 1 | D52: 2 | E52: 2 | G52: (a) De-establishment | I52: No | J52: 1 | L52: =J52*K52 -> 0.00
A54: 18 | B54: 111 | C54: 1 | D54: 2 | E54: 2 | G54: (b) Re-establishment | I54: No | J54: 1 | L54: =J54*K54 -> 0.00
A56: 19 | B56: 112 | C56: 1 | D56: 2 | E56: 2 | G56: (c) Suspension period | I56: month | J56: 3 | L56: =J56*K56 -> 0.00
A58: 20 | B58: 113 | C58: 1 | D58: 2 | E58: 2 | G58: (d) Engineer's cost | I58: PC Sum | J58: 1 | L58: =J58*K58 -> 0.00
F60: C1.3.2 | G60: Contract sign boards | I60: m2 | J60: 10 | L60: =J60*K60 -> 0.00
A62: 22 | B62: 217 | C62: 1 | D62: 3 | E62: 3 | G62: SECTION NO. 1
A64: 23 | B64: 688 | C64: 1 | D64: 3 | E64: 3 | G64: BILL NO. 3
A66: 24 | B66: 117 | C66: 1 | D66: 3 | E66: 3 | F66: C1.4 | G66: FACILITIES FOR THE ENGINEER
A68: 25 | B68: 118 | C68: 1 | D68: 3 | E68: 3 | F68: C1.4.1 | G68: Site accommodation
A70: 26 | B70: 119 | C70: 1 | D70: 3 | E70: 3 | F70: C1.4.1.1 | G70: Offices and conference room | I70: m² | J70: 40 | L70: =J70*K70 -> 0.00
A72: 27 | B72: 120 | C72: 1 | D72: 3 | E72: 3 | F72: C1.4.1.2 | G72: Laboratories | I72: m² | L72: Rate Only
A74: 28 | B74: 121 | C74: 1 | D74: 3 | E74: 3 | F74: C1.4.1.3 | G74: Open concrete working floors and verandas | I74: m² | L74: Rate Only
A76: 29 | B76: 122 | C76: 1 | D76: 3 | E76: 3 | F76: C1.4.1.4 | G76: Roofs over open concrete working floors and verandas | I76: m² | L76: Rate Only
A78: 30 | B78: 123 | C78: 1 | D78: 3 | E78: 3 | F78: C1.4.1.5 | G78: Store rooms inside the laboratory | I78: m² | L78: Rate Only
A80: 31 | B80: 124 | C80: 1 | D80: 3 | E80: 3 | F80: C1.4.1.6 | G80: Car ports | I80: No | J80: 4 | L80: =J80*K80 -> 0.00
A82: 32 | B82: 125 | C82: 1 | D82: 3 | E82: 3 | F82: C1.4.1.7 | G82: Ablution unit (equipped as specified) | I82: No | J82: 5 | L82: =J82*K82 -> 0.00
A84: 33 | B84: 126 | C84: 1 | D84: 3 | E84: 3 | F84: C1.4.1.8 | G84: Change room with a shower | I84: No | L84: Rate Only
A86: 34 | B86: 127 | C86: 1 | D86: 3 | E86: 3 | F86: C1.4.1.9 | G86: Kitchen unit (equipped as specified) | I86: No | J86: 1 | L86: =J86*K86 -> 0.00
A88: 35 | B88: 128 | C88: 1 | D88: 3 | E88: 3 | F88: C1.4.1.10 | G88: Type A prefabricated house (equipped as specified) | I88: No | J88: 0 | L88: =J88*K88 -> 0.00
A90: 36 | B90: 129 | C90: 1 | D90: 3 | E90: 3 | F90: C1.4.1.11 | G90: Type B prefabricated house (equipped as specified) | I90: No | J90: 0 | L90: =J90*K90 -> 0.00
A92: 37 | B92: 130 | C92: 1 | D92: 3 | E92: 3 | F92: C1.4.1.12 | G92: Type C prefabricated house (equipped as specified) | I92: No | J92: 0 | L92: =J92*K92 -> 0.00
A94: 38 | B94: 131 | C94: 1 | D94: 3 | E94: 3 | F94: C1.4.1.13 | G94: Rented housing paid for by the Contractor | I94: Prov Sum | J94: 1 | K94: =4*10000*10 -> 400,000.00 | L94: =J94*K94 -> 400,000.00
A96: 39 | B96: 132 | C96: 1 | D96: 3 | E96: 3 | F96: C1.4.1.14 | G96: Contractor's handling costs, profit and all other charges in respect of item C1.4.1.13 | I96: % | J96: 10% | K96: =SUM(L94:L95) -> 400,000.00 | L96: =ROUND(J96*K96,2) -> 40,000.00
A98: 40 | B98: 133 | C98: 1 | D98: 3 | E98: 3 | F98: C1.4.2 | G98: Items measured by area
A100: 41 | B100: 134 | C100: 1 | D100: 3 | E100: 3 | F100: C1.4.2.1 | G100: Shelving as specified, complete with brackets | I100: m² | J100: 6 | L100: =ROUND(J100*K100,2) -> 0.00
A102: 42 | B102: 135 | C102: 1 | D102: 3 | E102: 3 | F102: C1.4.2.2 | G102: Work benches with a concrete slab top | I102: m² | L102: Rate Only
A104: 43 | B104: 136 | C104: 1 | D104: 3 | E104: 4 | F104: C1.4.2.3 | G104: Work-benches with a wooden top | I104: m² | L104: Rate Only
A106: 44 | B106: 137 | C106: 1 | D106: 3 | E106: 4 | F106: C1.4.2.4 | G106: Constant-temperature baths of concrete and/or plastered brick | I106: m² | L106: Rate Only
A108: 45 | B108: 138 | C108: 1 | D108: 3 | E108: 4 | F108: C1.4.2.5 | G108: Concrete footings and pedestals for laboratory equipment | I108: m² | L108: Rate Only
A110: 46 | B110: 139 | C110: 1 | D110: 3 | E110: 4 | F110: C1.4.2.6 | G110: Roller blinds, opaque type | I110: m² | L110: Rate Only
A112: 47 | B112: 140 | C112: 1 | D112: 3 | E112: 4 | F112: C1.4.2.7 | G112: Venetian blinds | I112: m² | J112: 8 | L112: =ROUND(J112*K112,2) -> 0.00
A114: 48 | B114: 141 | C114: 1 | D114: 3 | E114: 4 | F114: C1.4.2.8 | G114: Notice boards | I114: m² | J114: 3 | L114: =ROUND(J114*K114,2) -> 0.00
A116: 49 | B116: 142 | C116: 1 | D116: 3 | E116: 4 | F116: C1.4.2.9 | G116: White boards | I116: m² | L116: Rate Only
A118: 50 | B118: 143 | C118: 1 | D118: 3 | E118: 4 | F118: C1.4.2.10 | G118: Galvanised wire mesh fencing for store rooms | I118: m² | L118: Rate Only
A120: 51 | B120: 144 | C120: 1 | D120: 3 | E120: 4 | F120: C1.4.2.11 | G120: Galvanised wire mesh store room gate with a padlock | I120: m² | L120: Rate Only
A122: 52 | B122: 145 | C122: 1 | D122: 3 | E122: 4 | F122: C1.4.3 | G122: Items measured by number
A124: 53 | B124: 146 | C124: 1 | D124: 3 | E124: 4 | F124: C1.4.3.1 | G124: Office swivel chair | I124: No | L124: Rate Only
A126: 54 | B126: 147 | C126: 1 | D126: 3 | E126: 4 | F126: C1.4.3.2 | G126: Office chair | I126: No | J126: 12 | L126: =ROUND(J126*K126,2) -> 0.00
A128: 55 | B128: 148 | C128: 1 | D128: 3 | E128: 4 | F128: C1.4.3.3 | G128: Draughtsman's stool | I128: No | J128: 2 | L128: =ROUND(J128*K128,2) -> 0.00
A130: 56 | B130: 149 | C130: 1 | D130: 3 | E130: 4 | F130: C1.4.3.4 | G130: Laboratory high chair | I130: No | L130: Rate Only
A132: 57 | B132: 150 | C132: 1 | D132: 3 | E132: 4 | F132: C1.4.3.5 | G132: Office desk with 3 drawers (at least one lockable drawer) | I132: No | J132: 2 | L132: =ROUND(J132*K132,2) -> 0.00
A134: 58 | B134: 151 | C134: 1 | D134: 3 | E134: 4 | F134: C1.4.3.6 | G134: Typist desk (L-shaped) | I134: No | L134: Rate Only
A136: 59 | B136: 152 | C136: 1 | D136: 3 | E136: 4 | F136: C1.4.3.7 | G136: Drawing table | I136: No | J136: 1 | L136: =ROUND(J136*K136,2) -> 0.00
A138: 60 | B138: 153 | C138: 1 | D138: 3 | E138: 4 | F138: C1.4.3.8 | G138: Conference table | I138: No | J138: 1 | L138: =ROUND(J138*K138,2) -> 0.00
A140: 61 | B140: 154 | C140: 1 | D140: 3 | E140: 4 | F140: C1.4.3.9 | G140: Bookcase | I140: No | L140: Rate Only
A142: 62 | B142: 155 | C142: 1 | D142: 3 | E142: 4 | F142: C1.4.3.10 | G142: Filing cabinet | I142: No | J142: 1 | L142: =ROUND(J142*K142,2) -> 0.00
A144: 63 | B144: 156 | C144: 1 | D144: 3 | E144: 4 | F144: C1.4.3.11 | G144: General purpose steel cabinet with shelves | I144: No | J144: 2 | L144: =ROUND(J144*K144,2) -> 0.00
A146: 64 | B146: 157 | C146: 1 | D146: 3 | E146: 4 | F146: C1.4.3.12 | G146: Wall mounted pivot plan filing system | I146: No | L146: Rate Only
A148: 65 | B148: 158 | C148: 1 | D148: 3 | E148: 5 | F148: C1.4.3.13 | G148: 220/250 volt power outlet plug point | I148: No | J148: 4 | L148: =ROUND(J148*K148,2) -> 0.00
A150: 66 | B150: 159 | C150: 1 | D150: 3 | E150: 5 | F150: C1.4.3.14 | G150: 400/231 volt 3-phase power outlet plug point | I150: No | L150: Rate Only
A152: 67 | B152: 160 | C152: 1 | D152: 3 | E152: 5 | F152: C1.4.3.15 | G152: Single 1500m, 58 watt fluorescent tube ceiling light | I152: No | J152: 6 | L152: =ROUND(J152*K152,2) -> 0.00
A154: 68 | B154: 161 | C154: 1 | D154: 3 | E154: 5 | F154: C1.4.3.16 | G154: Single 1500mm, 22 watt LED tube ceiling light | I154: No | L154: Rate Only
A156: 69 | B156: 162 | C156: 1 | D156: 3 | E156: 5 | F156: C1.4.3.17 | G156: 11 watt compact fluorescent bulb ceiling light | I156: No | L156: Rate Only
A158: 70 | B158: 163 | C158: 1 | D158: 3 | E158: 5 | F158: C1.4.3.18 | G158: 7 watt LED bulb ceiling light | I158: No | L158: Rate Only
A160: 71 | B160: 164 | C160: 1 | D160: 3 | E160: 5 | F160: C1.4.3.19 | G160: Wash-hand basin | I160: No | J160: 1 | L160: =ROUND(J160*K160,2) -> 0.00
A162: 72 | B162: 165 | C162: 1 | D162: 3 | E162: 5 | F162: C1.4.3.20 | G162: Laboratory basin | I162: No | L162: Rate Only
A164: 73 | B164: 166 | C164: 1 | D164: 3 | E164: 5 | F164: C1.4.3.21 | G164: Extractor fan | I164: No | L164: Rate Only
A166: 74 | B166: 167 | C166: 1 | D166: 3 | E166: 5 | F166: C1.4.3.22 | G166: Fume cupboard | I166: No | L166: Rate Only
A168: 75 | B168: 168 | C168: 1 | D168: 3 | E168: 5 | F168: C1.4.3.23 | G168: Fire extinguisher 9,0 kg, dry powder type | I168: No | J168: 2 | L168: =ROUND(J168*K168,2) -> 0.00
A170: 76 | B170: 169 | C170: 1 | D170: 3 | E170: 5 | F170: C1.4.3.24 | G170: Air-conditioning unit | I170: No | J170: 2 | L170: =ROUND(J170*K170,2) -> 0.00
A172: 77 | B172: 170 | C172: 1 | D172: 3 | E172: 5 | F172: C1.4.3.25 | G172: Heater | I172: No | L172: Rate Only
A174: 78 | B174: 171 | C174: 1 | D174: 3 | E174: 5 | F174: C1.4.3.26 | G174: Concrete specimen curing bath | I174: No | L174: Rate Only
A176: 79 | B176: 172 | C176: 1 | D176: 3 | E176: 5 | F176: C1.4.3.27 | G176: Waste paper basket | I176: No | L176: Rate Only
A178: 80 | B178: 173 | C178: 1 | D178: 3 | E178: 5 | F178: C1.4.3.28 | G178: UPS / Voltage stabiliser (2kVa) | I178: No | J178: 1 | L178: =ROUND(J178*K178,2) -> 0.00
A180: 81 | B180: 174 | C180: 1 | D180: 3 | E180: 5 | F180: C1.4.3.29 | G180: A3 / A4 colour printer, copier, scanner | I180: No | J180: 1 | L180: =ROUND(J180*K180,2) -> 0.00
A182: 82 | B182: 175 | C182: 1 | D182: 3 | E182: 5 | F182: C1.4.3.30 | G182: A4 colour printer, copier, scanner | I182: No | L182: Rate Only
A184: 83 | B184: 176 | C184: 1 | D184: 3 | E184: 5 | F184: C1.4.3.31 | G184: Rain gauge | I184: No | J184: 1 | L184: =ROUND(J184*K184,2) -> 0.00
A186: 84 | B186: 177 | C186: 1 | D186: 3 | E186: 5 | F186: C1.4.3.32 | G186: Minimum/maximum atmospheric temperature gauge | I186: No | L186: Rate Only
A188: 85 | B188: 178 | C188: 1 | D188: 3 | E188: 5 | F188: C1.4.3.33 | G188: Digital thermometer | I188: No | L188: Rate Only
A190: 86 | B190: 179 | C190: 1 | D190: 3 | E190: 5 | F190: C1.4.3.34 | G190: Mobile outdoor weather station | I190: No | L190: Rate Only
A192: 87 | B192: 180 | C192: 1 | D192: 3 | E192: 5 | F192: C1.4.3.35 | G192: 3,0m aluminium straight edge complete with two measuring wedges | I192: No | J192: 1 | L192: =ROUND(J192*K192,2) -> 0.00
A194: 88 | B194: 181 | C194: 1 | D194: 3 | E194: 6 | F194: C1.4.3.36 | G194: Measuring wheel | I194: No | J194: 1 | L194: =ROUND(J194*K194,2) -> 0.00
A196: 89 | B196: 182 | C196: 1 | D196: 3 | E196: 6 | F196: C1.4.3.37 | G196: First aid kit | I196: No | J196: 3 | L196: =ROUND(J196*K196,2) -> 0.00
A198: 90 | B198: 183 | C198: 1 | D198: 3 | E198: 6 | F198: C1.4.3.38 | G198: Standpipe complete with 30m of 19mm dia. heavy duty hose pipe | I198: No | L198: Rate Only
F200: PC1.4.3.39 | G200: ACSA approved lime coloured reflective safety jackets (With lettering) | I200: No | J200: 12 | L200: =ROUND(J200*K200,2) -> 0.00
F202: PC1.4.3.40 | G202: Rechargeable 500 000 candlelight halogen lamps | I202: No | J202: 2 | L202: =ROUND(J202*K202,2) -> 0.00
F204: PC1.4.3.41 | G204: Two-way hand held radio VHF/AM Dittel FSG5 complete with charger, carrying bag with strap and vehicle magnetic antenna including adapter cable | I204: No | J204: 2 | L204: =ROUND(J204*K204,2) -> 0.00
A206: 91 | B206: 184 | C206: 1 | D206: 3 | E206: 6 | F206: C1.4.4 | G206: Prime cost items
A208: 92 | B208: 185 | C208: 1 | D208: 3 | E208: 6 | F208: C1.4.4.1 | G208: Cell phones costs, including pro-rata rentals, for calls made in connection with contract administration | I208: PC Sum | J208: 1 | K208: 35,000.00 | L208: =ROUND(J208*K208,2) -> 35,000.00
A210: 93 | B210: 186 | C210: 1 | D210: 3 | E210: 6 | F210: C1.4.4.2 | G210: Handling costs and profit in respect of item C1.4.4.1 | I210: % | J210: 10% | K210: =L208 -> 35,000.00 | L210: =ROUND(J210*K210,2) -> 3,500.00
A212: 94 | B212: 187 | C212: 1 | D212: 3 | E212: 6 | F212: C1.4.4.3 | G212: The provision of a direct independent telephone line for the Engineer, including the monthly rental charges and the cost of business calls | I212: PC Sum | J212: 1 | L212: =ROUND(J212*K212,2) -> 0.00
A214: 95 | B214: 188 | C214: 1 | D214: 3 | E214: 6 | F214: C1.4.4.4 | G214: Handling costs and profit in respect of item C1.4.4.3 | I214: % | J214: 0% | L214: =ROUND(J214*K214,2) -> 0.00
A216: 96 | B216: 189 | C216: 1 | D216: 3 | E216: 6 | F216: C1.4.4.5 | G216: The provision of internet connectivity and WiFi data for Engineer"€™s site staff | I216: PC Sum | J216: 1 | K216: =800*10 -> 8,000.00 | L216: =ROUND(J216*K216,2) -> 8,000.00
A218: 97 | B218: 190 | C218: 1 | D218: 3 | E218: 6 | F218: C1.4.4.6 | G218: Handling costs and profit in respect of item C1.4.4.5 | I218: % | J218: 10% | K218: =L216 -> 8,000.00 | L218: =ROUND(J218*K218,2) -> 800.00
A220: 98 | B220: 191 | C220: 1 | D220: 3 | E220: 6 | F220: C1.4.4.7 | G220: The provision of paper and ink for a combination colour printer/copier/scanner | I220: PC Sum | J220: 1 | K220: 7,500.00 | L220: =ROUND(J220*K220,2) -> 7,500.00
A222: 99 | B222: 192 | C222: 1 | D222: 3 | E222: 6 | F222: C1.4.4.8 | G222: Handling costs and profit in respect of item C1.4.4.7 | I222: % | J222: 10% | K222: =L220 -> 7,500.00 | L222: =ROUND(J222*K222,2) -> 750.00
A224: 100 | B224: 193 | C224: 1 | D224: 3 | E224: 6 | F224: C1.4.4.9 | G224: The provision of a complete 220/250 volt single phase electrical power installation, including all poles, insulators, wiring, switchboards, mains connections, meters etc. | I224: PC Sum | J224: 1 | L224: =ROUND(J224*K224,2) -> 0.00
A226: 101 | B226: 194 | C226: 1 | D226: 3 | E226: 6 | F226: C1.4.4.10 | G226: Handling costs and profit in respect of item C1.4.4.9 | I226: % | J226: 0% | L226: =ROUND(J226*K226,2) -> 0.00
A228: 102 | B228: 195 | C228: 1 | D228: 3 | E228: 6 | F228: C1.4.4.11 | G228: The provision of a complete 440/231 volt three phase electrical power installation, including all poles, insulators, wiring, switchboards, mains connections, meters etc. | I228: No | L228: Rate Only
A230: 103 | B230: 196 | C230: 1 | D230: 3 | E230: 7 | F230: C1.4.4.12 | G230: Handling costs and profit in respect of item C1.4.4.11 | I230: % | J230: 0% | L230: =ROUND(J230*K230,2) -> 0.00
A232: 104 | B232: 197 | C232: 1 | D232: 3 | E232: 7 | F232: C1.4.4.13 | G232: Provision of a 25 kVA volt three phase electricity generator if electricity from a power supply authority is not available on site | I232: PC Sum | J232: 1 | K232: 65,000.00 | L232: =ROUND(J232*K232,2) -> 65,000.00
A234: 105 | B234: 198 | C234: 1 | D234: 3 | E234: 7 | F234: C1.4.4.14 | G234: Handling costs and profit in respect of item C1.4.4.13 | I234: % | J234: 10% | L234: =ROUND(J234*K234,2) -> 0.00
A236: 106 | B236: 199 | C236: 1 | D236: 3 | E236: 7 | F236: C1.4.4.15 | G236: The provision of all gas installations required at the site offices, laboratories and at the Engineer"€™s staff accommodation (if required), including gas storage cylinders, tubing, regulators, gas burners and shut-off cocks | I236: PC Sum | J236: 1 | L236: =ROUND(J236*K236,2) -> 0.00
A238: 107 | B238: 200 | C238: 1 | D238: 3 | E238: 7 | F238: C1.4.4.16 | G238: Handling costs and profit in respect of item C1.4.4.15 | I238: % | J238: 0% | L238: =ROUND(J238*K238,2) -> 0.00
A240: 108 | B240: 201 | C240: 1 | D240: 3 | E240: 7 | F240: C1.4.5 | G240: Services at site offices, laboratories and site accommodation
A242: 109 | B242: 202 | C242: 1 | D242: 3 | E242: 7 | F242: C1.4.5.1 | G242: Fixed costs | I242: Lump Sum | J242: 1 | L242: =ROUND(J242*K242,2) -> 0.00
A244: 110 | B244: 203 | C244: 1 | D244: 3 | E244: 7 | F244: C1.4.5.2 | G244: Running costs | I244: month | J244: 10 | L244: =ROUND(J244*K244,2) -> 0.00
A246: 111 | B246: 204 | C246: 1 | D246: 3 | E246: 7 | F246: C1.4.6 | G246: Office staff
A248: 112 | B248: 205 | C248: 1 | D248: 3 | E248: 7 | F248: C1.4.6.1 | G248: Secretary / receptionist | I248: month | J248: 10 | L248: =ROUND(J248*K248,2) -> 0.00
A250: 113 | B250: 206 | C250: 1 | D250: 3 | E250: 7 | F250: C1.4.6.2 | G250: Technical assistant | I250: month | J250: 10 | L250: =ROUND(J250*K250,2) -> 0.00
A252: 114 | B252: 207 | C252: 1 | D252: 3 | E252: 7 | F252: C1.4.7 | G252: Site inspection transport
A254: 115 | B254: 208 | C254: 1 | D254: 3 | E254: 7 | F254: C1.4.7.1 | G254: Provision of a bus, mini-bus or combi van for site inspection purposes (specify type and size of vehicle) | I254: Per day | L254: Rate Only
A256: 116 | B256: 209 | C256: 1 | D256: 3 | E256: 7 | F256: C1.4.7.2 | G256: Travel on site | I256: km | L256: Rate Only
A258: 117 | B258: 210 | C258: 1 | D258: 3 | E258: 7 | F258: C1.4.8 | G258: Site security measures for the Engineer's facilities
A260: 118 | B260: 211 | C260: 1 | D260: 3 | E260: 7 | F260: C1.4.8.1 | G260: Supply and installation of all required security measures at the Engineer's site offices and laboratories | I260: Lump Sum | J260: 1 | L260: =ROUND(J260*K260,2) -> 0.00
A262: 119 | B262: 212 | C262: 1 | D262: 3 | E262: 7 | F262: C1.4.8.2 | G262: Provision of security guards / watchmen and an armed response service at the Engineer's site offices and laboratories | I262: month | J262: 10 | L262: =ROUND(J262*K262,2) -> 0.00
A264: 120 | B264: 213 | C264: 1 | D264: 3 | E264: 8 | F264: C1.4.8.3 | G264: Supply and installation of all required security measures at the Engineer's site accommodation | I264: Lump Sum | J264: 1 | L264: =ROUND(J264*K264,2) -> 0.00
A266: 121 | B266: 214 | C266: 1 | D266: 3 | E266: 8 | F266: C1.4.8.4 | G266: Provision of security guards / watchmen and an armed response service at the Engineer's site accommodation | I266: month | J266: 10 | L266: =ROUND(J266*K266,2) -> 0.00
A268: 122 | B268: 215 | C268: 1 | D268: 3 | E268: 8 | F268: C1.4.8.5 | G268: Supply and installation of an alarm system at the Engineer's rented accommodation (No. of houses stated "€¦) | I268: Lump Sum | J268: 1 | L268: =ROUND(J268*K268,2) -> 0.00
A270: 123 | B270: 216 | C270: 1 | D270: 3 | E270: 8 | F270: C1.4.8.6 | G270: Provision of an armed response service at the Engineer's rented accommodation (No. of houses stated "€¦) | I270: month | J270: 10 | L270: =ROUND(J270*K270,2) -> 0.00
A272: 125 | B272: 283 | C272: 1 | D272: 4 | E272: 9 | G272: SECTION NO. 1
A274: 126 | B274: 689 | C274: 1 | D274: 4 | E274: 9 | G274: BILL NO. 4
A276: 127 | B276: 218 | C276: 1 | D276: 4 | E276: 9 | F276: C1.5 | G276: ACCOMODATION OF TRAFFIC
A278: 128 | B278: 219 | C278: 1 | D278: 4 | E278: 9 | F278: C1.5.1 | G278: Accommodation of pedestrian and non-motorised traffic
A280: 129 | B280: 220 | C280: 1 | D280: 4 | E280: 9 | F280: C1.5.1.1 | G280: Accommodation of pedestrian and non-motorised traffic | I280: month | J280: 10 | L280: =ROUND(J280*K280,2) -> 0.00
A282: 130 | B282: 221 | C282: 1 | D282: 4 | E282: 9 | F282: C1.5.1.2 | G282: Construction of temporary pedestrian walkways and/or cycle paths:
A284: 131 | B284: 222 | C284: 1 | D284: 4 | E284: 9 | G284: (a) Gravel surfaced pedestrian walkways / cycle paths | I284: m² | J284: 0 | L284: =ROUND(J284*K284,2) -> 0.00
A286: 132 | B286: 223 | C286: 1 | D286: 4 | E286: 9 | G286: (b) Bitumen surfaced pedestrian walkways / cycle paths | I286: m² | J286: 0 | L286: =ROUND(J286*K286,2) -> 0.00
A288: 133 | B288: 224 | C288: 1 | D288: 4 | E288: 9 | G288: (c) 60mm concrete block paved pedestrian walkways / cycle paths | I288: m² | J288: 0 | L288: =ROUND(J288*K288,2) -> 0.00
A290: 134 | B290: 225 | C290: 1 | D290: 4 | E290: 9 | F290: C1.5.2 | G290: Accommodation of vehicular traffic | I290: month | J290: 10 | L290: =ROUND(J290*K290,2) -> 0.00
A292: 135 | B292: 226 | C292: 1 | D292: 4 | E292: 9 | F292: C1.5.3 | G292: Liaison with traffic authorities | I292: month | J292: 10 | L292: =ROUND(J292*K292,2) -> 0.00
A294: 136 | B294: 227 | C294: 1 | D294: 4 | E294: 9 | F294: PC1.5.4 | G294: Construction of temporary deviations
A296: 137 | B296: 228 | C296: 1 | D296: 4 | E296: 9 | G296: The applicable payment items required for the construction of temporary deviations shall be taken from the relevant chapters and sections in Chapters 1, 3, 5, 9 and 10 and inserted into the Pricing Schedule here. Each payment item for the construction of temporary deviations shall be preceded by the main payment item number C1.5.4 / followed by the payment number for the applicable payment item
A298: 138 | B298: 229 | C298: 1 | D298: 4 | E298: 9 | F298: C1.5.5 | G298: Maintenance of temporary deviations
A300: 139 | B300: 230 | C300: 1 | D300: 4 | E300: 9 | F300: C1.5.5.1 | G300: Grass cutting | I300: ha | J300: 0 | L300: =ROUND(J300*K300,2) -> 0.00
A302: 140 | B302: 231 | C302: 1 | D302: 4 | E302: 9 | F302: C1.5.5.2 | G302: Drain cleaning | I302: km | J302: 0 | L302: =ROUND(J302*K302,2) -> 0.00
A304: 141 | B304: 232 | C304: 1 | D304: 4 | E304: 9 | F304: C1.5.5.3 | G304: Cleaning out culverts | I304: m³ | J304: 0 | L304: =ROUND(J304*K304,2) -> 0.00
A306: 142 | B306: 233 | C306: 1 | D306: 4 | E306: 10 | F306: C1.5.5.4 | G306: Collection of rubbish / litter | I306: km | J306: 0 | L306: =ROUND(J306*K306,2) -> 0.00
A308: 143 | B308: 234 | C308: 1 | D308: 4 | E308: 10 | F308: C1.5.5.5 | G308: Base patching using crushed stone material stabilised with bitumen emulsion and cement | I308: m³ | J308: 0 | L308: =ROUND(J308*K308,2) -> 0.00
A310: 144 | B310: 235 | C310: 1 | D310: 4 | E310: 10 | F310: C1.5.5.6 | G310: Base and/or surface patching using cold premixed asphalt | I310: kg | J310: 0 | L310: =ROUND(J310*K310,2) -> 0.00
A312: 145 | B312: 236 | C312: 1 | D312: 4 | E312: 10 | F312: C1.5.5.7 | G312: Base and/or surface patching using hot plant mixed asphalt | I312: kg | J312: 0 | L312: =ROUND(J312*K312,2) -> 0.00
A314: 146 | B314: 237 | C314: 1 | D314: 4 | E314: 10 | F314: C1.5.5.8 | G314: Replacement of damaged guardrails | I314: m | J314: 0 | L314: =ROUND(J314*K314,2) -> 0.00
A316: 147 | B316: 238 | C316: 1 | D316: 4 | E316: 10 | F316: C1.5.5.9 | G316: Grading of temporary deviations and existing roads used as detours | I316: kg | J316: 0 | L316: =ROUND(J316*K316,2) -> 0.00
A318: 148 | B318: 239 | C318: 1 | D318: 4 | E318: 10 | F318: C1.5.5.10 | G318: Watering of temporary deviations and existing roads used as detours | I318: kl | J318: 0
A320: 149 | B320: 240 | C320: 1 | D320: 4 | E320: 10 | F320: C1.5.5.11 | G320: Other road maintenance work ordered by the Engineer | I320: Item | J320: 0 | L320: =ROUND(J320*K320,2) -> 0.00
A322: 150 | B322: 241 | C322: 1 | D322: 4 | E322: 10 | F322: C1.5.5.12 | G322: Handling cost, profit and all other charges in respect of item C1.5.6.11 | I322: % | J322: 0% | L322: =ROUND(J322*K322,2) -> 0.00
A324: 151 | B324: 242 | C324: 1 | D324: 4 | E324: 10 | F324: C1.5.6 | G324: Removal of temporary deviations | I324: km | J324: 0 | L324: =ROUND(J324*K324,2) -> 0.00
A326: 152 | B326: 243 | C326: 1 | D326: 4 | E326: 10 | F326: C1.5.7 | G326: Temporary traffic control facilities
A328: 153 | B328: 244 | C328: 1 | D328: 4 | E328: 10 | F328: C1.5.7.1 | G328: Delineators including mounting bases and ballast:
A330: 154 | B330: 245 | C330: 1 | D330: 4 | E330: 10 | G330: (a) Single sided, reversible left or right (size indicated) | I330: No | J330: 10 | L330: =ROUND(J330*K330,2) -> 0.00
A332: 155 | B332: 246 | C332: 1 | D332: 4 | E332: 10 | G332: (b) Double sided, reversible left or right (size indicated) | I332: No | L332: Rate Only
A334: 156 | B334: 247 | C334: 1 | D334: 4 | E334: 10 | F334: C1.5.7.2 | G334: Traffic cones, minimum height 750mm | I334: No | L334: Rate Only
A336: 157 | B336: 248 | C336: 1 | D336: 4 | E336: 10 | F336: C1.5.7.3 | G336: Flagmen | I336: Man-Shift | J336: 100 | L336: =ROUND(J336*K336,2) -> 0.00
A338: 158 | B338: 249 | C338: 1 | D338: 4 | E338: 10 | F338: C1.5.7.4 | G338: Traffic controllers | I338: Man-Shift | L338: Rate Only
A340: 159 | B340: 250 | C340: 1 | D340: 4 | E340: 10 | F340: C1.5.7.5 | G340: Provision of illuminated traffic signs:
A342: 160 | B342: 251 | C342: 1 | D342: 4 | E342: 10 | G342: (a) Sign mounted flashing amber lights (2 lights with the specified power supply) mounted on a backing board which is:
A344: 161 | B344: 252 | C344: 1 | D344: 4 | E344: 11 | G344: (i) 900mm wide x 150mm high | I344: No | J344: 0 | L344: =ROUND(J344*K344,2) -> 0.00
A346: 162 | B346: 253 | C346: 1 | D346: 4 | E346: 11 | G346: (ii) 1200mm wide x 200mm high | I346: No | J346: 0 | L346: =ROUND(J346*K346,2) -> 0.00
A348: 163 | B348: 254 | C348: 1 | D348: 4 | E348: 11 | G348: (b) Flashing LED illuminated arrow board | I348: No | J348: 0 | L348: =ROUND(J348*K348,2) -> 0.00
A350: 164 | B350: 255 | C350: 1 | D350: 4 | E350: 11 | G350: (c) Illuminated road sign "€“ R & TR series (1200mm diameter) | I350: No | J350: 0 | L350: =ROUND(J350*K350,2) -> 0.00
A352: 165 | B352: 256 | C352: 1 | D352: 4 | E352: 11 | G352: (d) Illuminated road sign "€“ TW series (length of sides indicated) | I352: No | J352: 0 | L352: =ROUND(J352*K352,2) -> 0.00
A354: 166 | B354: 257 | C354: 1 | D354: 4 | E354: 11 | G354: (e) Mobile variable message sign | I354: No | J354: 0 | L354: =ROUND(J354*K354,2) -> 0.00
A356: 167 | B356: 258 | C356: 1 | D356: 4 | E356: 11 | G356: (f) Mobile variable message sign with a speed measuring and display capability | I356: month | J356: 0 | L356: =ROUND(J356*K356,2) -> 0.00
A358: 168 | B358: 259 | C358: 1 | D358: 4 | E358: 11 | F358: C1.5.7.6 | G358: Maintenance of illuminated traffic signs:
A360: 169 | B360: 260 | C360: 1 | D360: 4 | E360: 11 | G360: (a) Sign mounted flashing amber lights (a pair of two lights mounted on a separate backing board) | I360: month | J360: 0 | L360: =ROUND(J360*K360,2) -> 0.00
A362: 170 | B362: 261 | C362: 1 | D362: 4 | E362: 11 | G362: (b) Flashing LED illuminated arrow board | I362: month | J362: 0 | L362: =ROUND(J362*K362,2) -> 0.00
A364: 171 | B364: 262 | C364: 1 | D364: 4 | E364: 11 | G364: (c) Illuminated road sign "€“ R & TR series (diameter indicated) | I364: month | J364: 0 | L364: =ROUND(J364*K364,2) -> 0.00
A366: 172 | B366: 263 | C366: 1 | D366: 4 | E366: 11 | G366: (d) Illuminated road sign "€“ TW series (length of sides indicated) | I366: month | J366: 0 | L366: =ROUND(J366*K366,2) -> 0.00
A368: 173 | B368: 264 | C368: 1 | D368: 4 | E368: 11 | G368: (e) Mobile variable message sign | I368: month | J368: 0 | L368: =ROUND(J368*K368,2) -> 0.00
A370: 174 | B370: 265 | C370: 1 | D370: 4 | E370: 11 | G370: (f) Mobile variable message sign with a speed measuring and display capability | I370: month | J370: 0 | L370: =ROUND(J370*K370,2) -> 0.00
A372: 175 | B372: 266 | C372: 1 | D372: 4 | E372: 11 | F372: C1.5.7.7 | G372: Traffic calming devices:
A374: 176 | B374: 267 | C374: 1 | D374: 4 | E374: 11 | G374: (a) 25mm high x 100mm wide asphalt rumble strips | I374: m | J374: 0 | L374: =ROUND(J374*K374,2) -> 0.00
A376: 177 | B376: 268 | C376: 1 | D376: 4 | E376: 11 | G376: (b) 50mm high x 500m wide asphalt rumble strips | I376: m | J376: 0 | L376: =ROUND(J376*K376,2) -> 0.00
A378: 178 | B378: 269 | C378: 1 | D378: 4 | E378: 11 | G378: (c) 150mm high x 3m wide asphalt speed control humps | I378: m | J378: 0 | L378: =ROUND(J378*K378,2) -> 0.00
A380: 179 | B380: 270 | C380: 1 | D380: 4 | E380: 11 | F380: C1.5.7.8 | G380: Traffic control stations | I380: month | J380: 0 | L380: =ROUND(J380*K380,2) -> 0.00
A382: 180 | B382: 271 | C382: 1 | D382: 4 | E382: 11 | F382: C1.5.7.9 | G382: Cleaning of traffic control facilities | I382: month | J382: 0 | L382: =ROUND(J382*K382,2) -> 0.00
A384: 181 | B384: 272 | C384: 1 | D384: 4 | E384: 12 | F384: C1.5.8 | G384: Traffic safety officer | I384: Man-Month | J384: 10 | L384: =ROUND(J384*K384,2)*0 -> 0.00
A386: 182 | B386: 273 | C386: 1 | D386: 4 | E386: 12 | F386: C1.5.9 | G386: Traffic safety vehicle | I386: month | J386: 10 | L386: =ROUND(J386*K386,2) -> 0.00
A388: 183 | B388: 274 | C388: 1 | D388: 4 | E388: 12 | F388: C1.5.10 | G388: Tow trucks
A390: 184 | B390: 275 | C390: 1 | D390: 4 | E390: 12 | F390: C1.5.10.1 | G390: Provision of a tow truck on call for light vehicles weighing less than two tonnes | I390: month | J390: 0 | L390: =ROUND(J390*K390,2) -> 0.00
A392: 185 | B392: 276 | C392: 1 | D392: 4 | E392: 12 | F392: C1.5.10.2 | G392: Provision of a tow truck on call for heavy vehicles weighing two tonnes or more | I392: month | J392: 0 | L392: =ROUND(J392*K392,2) -> 0.00
A394: 186 | B394: 277 | C394: 1 | D394: 4 | E394: 12 | F394: C1.5.11 | G394: Provision of safety equipment for visitors
A396: 187 | B396: 278 | C396: 1 | D396: 4 | E396: 12 | F396: C1.5.11.1 | G396: Provision of reflective safety vests for visitors | I396: No | L396: Rate Only
A398: 188 | B398: 279 | C398: 1 | D398: 4 | E398: 12 | F398: C1.5.11.2 | G398: Provision of hard hats for visitors | I398: No | L398: Rate Only
... 360 more rows
